[Event "Chessable Masters - Torneo preliminare"]
[White "Vallejo Pons, Francisco"]
[Black "Shimanov, Aleksandr"]
[WhiteFideId "2205530"]
[BlackFideId "4198603"]
[WhiteElo "2662"]
[BlackElo "2610"]
[Result "1-0"]
[Round "8"]
[TimeControl "600+2"]
[Date "2023.03.13"]
[WhiteClock "0:00:09"]
[BlackClock "0:00:09"]

1. e4 {[%clk 0:09:58]}  d5 {[%clk 0:10:00]} 2. exd5 {[%clk 0:09:51]}  Qxd5 {[%clk 0:10:02]} 3. Nc3 {[%clk 0:09:49]}  Qe5+ {[%clk 0:10:03]} 4. Nge2 {[%clk 0:09:37]}  Nf6 {[%clk 0:10:03]} 5. d4 {[%clk 0:09:34]}  Qa5 {[%clk 0:10:04]} 6. Ng3 {[%clk 0:07:23]}  h5 {[%clk 0:10:02]} 7. h4 {[%clk 0:07:00]}  g6 {[%clk 0:09:20]} 8. Bc4 {[%clk 0:06:38]}  Bg7 {[%clk 0:09:14]} 9. Qd3 {[%clk 0:06:11]}  Nc6 {[%clk 0:07:02]} 10. O-O {[%clk 0:06:09]}  Bf5 {[%clk 0:05:19]} 11. Nxf5 {[%clk 0:05:42]}  Qxf5 {[%clk 0:05:21]} 12. Qxf5 {[%clk 0:05:20]}  gxf5 {[%clk 0:05:23]} 13. Nb5 {[%clk 0:05:21]}  O-O-O {[%clk 0:05:16]} 14. c3 {[%clk 0:04:44]}  e6 {[%clk 0:05:09]} 15. Bf4 {[%clk 0:04:36]}  Rd7 {[%clk 0:05:08]} 16. Na3 {[%clk 0:04:09]}  Ne7 {[%clk 0:05:05]} 17. g3 {[%clk 0:03:59]}  Ng6 {[%clk 0:04:56]} 18. Be3 {[%clk 0:03:36]}  Nd5 {[%clk 0:04:27]} 19. Bd2 {[%clk 0:03:21]}  Nb6 {[%clk 0:03:50]} 20. Bb3 {[%clk 0:03:15]}  Bf6 {[%clk 0:03:35]} 21. Rfe1 {[%clk 0:03:02]}  c6 {[%clk 0:02:29]} 22. Rad1 {[%clk 0:03:02]}  Rhd8 {[%clk 0:02:01]} 23. Bc1 {[%clk 0:03:00]}  a5 {[%clk 0:01:48]} 24. Kf1 {[%clk 0:02:54]}  Ne7 {[%clk 0:01:35]} 25. Bc2 {[%clk 0:02:36]}  Ned5 {[%clk 0:01:31]} 26. Bd3 {[%clk 0:02:32]}  Rg8 {[%clk 0:01:20]} 27. Be2 {[%clk 0:02:29]}  Rh8 {[%clk 0:01:00]} 28. Bf3 {[%clk 0:02:30]}  Be7 {[%clk 0:00:57]} 29. Nb1 {[%clk 0:02:15]}  a4 {[%clk 0:00:51]} 30. b3 {[%clk 0:02:11]}  Nf6 {[%clk 0:00:40]} 31. Bb2 {[%clk 0:01:58]}  Rhd8 {[%clk 0:00:39]} 32. Na3 {[%clk 0:01:35]}  Ng4 {[%clk 0:00:34]} 33. Ke2 {[%clk 0:01:12]}  Kc7 {[%clk 0:00:23]} 34. Nc2 {[%clk 0:01:01]}  axb3 {[%clk 0:00:19]} 35. axb3 {[%clk 0:01:03]}  Nd5 {[%clk 0:00:20]} 36. Ra1 {[%clk 0:00:30]}  Ndf6 {[%clk 0:00:21]} 37. Ne3 {[%clk 0:00:21]}  Bf8 {[%clk 0:00:14]} 38. Red1 {[%clk 0:00:17]}  Bh6 {[%clk 0:00:14]} 39. Nc4 {[%clk 0:00:14]}  Ne4 {[%clk 0:00:10]} 40. Bxe4 {[%clk 0:00:15]}  fxe4 {[%clk 0:00:11]} 41. Ba3 {[%clk 0:00:07]}  f5 {[%clk 0:00:10]} 42. Bc5 {[%clk 0:00:07]}  Rb8 {[%clk 0:00:03]} 43. Bb6+ {[%clk 0:00:05]}  Kc8 {[%clk 0:00:05]} 44. Ba7 {[%clk 0:00:05]}  b5 {[%clk 0:00:05]} 45. Nb6+ {[%clk 0:00:03]}  Rxb6 {[%clk 0:00:06]} 46. Bxb6 {[%clk 0:00:04]}  Rb7 {[%clk 0:00:05]} 47. Ra8+ {[%clk 0:00:04]}  Kd7 {[%clk 0:00:06]} 48. Ra7 {[%clk 0:00:06]}  Rxa7 {[%clk 0:00:07]} 49. Bxa7 {[%clk 0:00:08]}  Nf6 {[%clk 0:00:04]} 50. c4 {[%clk 0:00:08]}  bxc4 {[%clk 0:00:05]} 51. bxc4 {[%clk 0:00:10]}  Ng4 {[%clk 0:00:04]} 52. Bc5 {[%clk 0:00:11]}  Bg7 {[%clk 0:00:05]} 53. Ra1 {[%clk 0:00:10]}  Bf6 {[%clk 0:00:05]} 54. Ra7+ {[%clk 0:00:11]}  Kd8 {[%clk 0:00:06]} 55. Rh7 {[%clk 0:00:11]}  Ke8 {[%clk 0:00:06]} 56. Rc7 {[%clk 0:00:08]}  e5 {[%clk 0:00:07]} 57. dxe5 {[%clk 0:00:05]}  Nxe5 {[%clk 0:00:08]} 58. Bd4 {[%clk 0:00:04]}  Kd8 {[%clk 0:00:03]} 59. Bxe5 {[%clk 0:00:05]}  Bxe5 {[%clk 0:00:05]} 60. Rxc6 {[%clk 0:00:07]}  Ke7 {[%clk 0:00:06]} 61. Rh6 {[%clk 0:00:08]}  Kf7 {[%clk 0:00:06]} 62. Ra6 {[%clk 0:00:09]}  Bd4 {[%clk 0:00:07]} 63. Rc6 {[%clk 0:00:09]}  Ke7 {[%clk 0:00:08]} 64. Rh6 {[%clk 0:00:07]}  Kf7 {[%clk 0:00:09]} 65. f3 {[%clk 0:00:07]}  e3 {[%clk 0:00:08]} 66. Rxh5 {[%clk 0:00:06]}  Kg6 {[%clk 0:00:08]} 67. Rg5+ {[%clk 0:00:08]}  Kf6 {[%clk 0:00:09]} 68. f4 {[%clk 0:00:09]} 1-0


[Site "Internet"]

[Event "Chessable Masters - Torneo preliminare"]
[White "Malakhov, Vladimir"]
[Black "Frolyanov, Dmitry"]
[WhiteFideId "4120787"]
[BlackFideId "4151976"]
[WhiteElo "2666"]
[BlackElo "2451"]
[Result "1/2-1/2"]
[Round "8"]
[TimeControl "600+2"]
[Date "2023.03.13"]
[WhiteClock "0:03:27"]
[BlackClock "0:05:51"]

1. e4 {[%clk 0:10:01]}  e5 {[%clk 0:09:59]} 2. Nf3 {[%clk 0:10:02]}  Nf6 {[%clk 0:09:59]} 3. Nxe5 {[%clk 0:09:58]}  d6 {[%clk 0:10:00]} 4. Nf3 {[%clk 0:09:59]}  Nxe4 {[%clk 0:10:00]} 5. c4 {[%clk 0:09:57]}  Be7 {[%clk 0:10:00]} 6. Nc3 {[%clk 0:09:54]}  Nxc3 {[%clk 0:10:01]} 7. dxc3 {[%clk 0:09:55]}  Nc6 {[%clk 0:10:02]} 8. Bd3 {[%clk 0:09:52]}  Ne5 {[%clk 0:09:38]} 9. Be2 {[%clk 0:09:45]}  O-O {[%clk 0:09:31]} 10. O-O {[%clk 0:09:44]}  Be6 {[%clk 0:09:30]} 11. c5 {[%clk 0:09:09]}  Nxf3+ {[%clk 0:09:18]} 12. Bxf3 {[%clk 0:09:08]}  c6 {[%clk 0:09:06]} 13. cxd6 {[%clk 0:08:48]}  Bxd6 {[%clk 0:09:05]} 14. Be3 {[%clk 0:08:44]}  Qc7 {[%clk 0:09:00]} 15. h3 {[%clk 0:08:43]}  Bf4 {[%clk 0:08:16]} 16. Qd2 {[%clk 0:08:19]}  Bh2+ {[%clk 0:07:44]} 17. Kh1 {[%clk 0:08:18]}  Rad8 {[%clk 0:07:43]} 18. Qc2 {[%clk 0:08:11]}  Bf4 {[%clk 0:07:38]} 19. Rfe1 {[%clk 0:07:46]}  Bxe3 {[%clk 0:07:04]} 20. Rxe3 {[%clk 0:07:46]}  Rd7 {[%clk 0:07:03]} 21. Rd1 {[%clk 0:07:00]}  Rfd8 {[%clk 0:06:58]} 22. Rxd7 {[%clk 0:07:00]}  Qxd7 {[%clk 0:06:50]} 23. Qa4 {[%clk 0:06:29]}  a6 {[%clk 0:06:42]} 24. Qa5 {[%clk 0:06:01]}  h6 {[%clk 0:06:05]} 25. Re1 {[%clk 0:04:58]}  Qc8 {[%clk 0:06:03]} 26. Rd1 {[%clk 0:04:42]}  Rxd1+ {[%clk 0:06:01]} 27. Bxd1 {[%clk 0:04:42]}  Qd7 {[%clk 0:06:00]} 28. Bf3 {[%clk 0:03:31]}  Qd2 {[%clk 0:05:53]} 29. Qb6 {[%clk 0:03:26]}  Qc1+ {[%clk 0:05:53]} 30. Kh2 {[%clk 0:03:27]}  Qf4+ {[%clk 0:05:51]} 1/2-1/2


[Site "Internet"]

[Event "Chessable Masters - Torneo preliminare"]
[White "Rasulov, Vugar"]
[Black "Alekseenko, Kirill"]
[WhiteFideId "13402390"]
[BlackFideId "4135539"]
[WhiteElo "2415"]
[BlackElo "2632"]
[Result "1-0"]
[Round "8"]
[TimeControl "600+2"]
[Date "2023.03.13"]
[WhiteClock "0:00:50"]
[BlackClock "0:00:16"]

1. d4 {[%clk 0:10:01]}  d5 {[%clk 0:09:59]} 2. c4 {[%clk 0:10:02]}  dxc4 {[%clk 0:10:00]} 3. Nf3 {[%clk 0:10:01]}  a6 {[%clk 0:10:02]} 4. a4 {[%clk 0:09:50]}  Nf6 {[%clk 0:10:02]} 5. e3 {[%clk 0:09:50]}  Bg4 {[%clk 0:10:03]} 6. Bxc4 {[%clk 0:09:50]}  e6 {[%clk 0:10:04]} 7. h3 {[%clk 0:09:46]}  Bh5 {[%clk 0:10:05]} 8. Nc3 {[%clk 0:09:28]}  Nc6 {[%clk 0:10:05]} 9. O-O {[%clk 0:09:05]}  Bd6 {[%clk 0:10:05]} 10. Be2 {[%clk 0:09:03]}  O-O {[%clk 0:10:06]} 11. b3 {[%clk 0:08:57]}  Nd5 {[%clk 0:10:06]} 12. Bb2 {[%clk 0:08:50]}  f5 {[%clk 0:10:07]} 13. Nxd5 {[%clk 0:07:59]}  exd5 {[%clk 0:10:06]} 14. Ne5 {[%clk 0:08:00]}  Bxe2 {[%clk 0:08:17]} 15. Qxe2 {[%clk 0:08:02]}  Bxe5 {[%clk 0:07:47]} 16. dxe5 {[%clk 0:08:04]}  Qd7 {[%clk 0:07:48]} 17. Rfd1 {[%clk 0:07:51]}  Qe6 {[%clk 0:07:42]} 18. Rac1 {[%clk 0:07:40]}  Rf7 {[%clk 0:07:32]} 19. f4 {[%clk 0:06:40]}  Rd7 {[%clk 0:07:31]} 20. g4 {[%clk 0:06:24]}  Rf8 {[%clk 0:06:53]} 21. Kh2 {[%clk 0:05:55]}  fxg4 {[%clk 0:06:46]} 22. Qxg4 {[%clk 0:05:53]}  Rf5 {[%clk 0:05:52]} 23. Rd2 {[%clk 0:05:24]}  Rdf7 {[%clk 0:04:51]} 24. Rcd1 {[%clk 0:04:55]}  h5 {[%clk 0:04:29]} 25. Qg2 {[%clk 0:04:48]}  Ne7 {[%clk 0:04:17]} 26. Ba3 {[%clk 0:04:14]}  c6 {[%clk 0:04:18]} 27. Bxe7 {[%clk 0:03:54]}  Rxe7 {[%clk 0:04:20]} 28. Rd4 {[%clk 0:03:35]}  Kh8 {[%clk 0:04:03]} 29. b4 {[%clk 0:02:59]}  g5 {[%clk 0:03:56]} 30. Rg1 {[%clk 0:02:44]}  Qf7 {[%clk 0:03:30]} 31. Qg3 {[%clk 0:02:26]}  Re8 {[%clk 0:02:55]} 32. h4 {[%clk 0:02:10]}  gxf4 {[%clk 0:02:36]} 33. exf4 {[%clk 0:01:54]}  Rg8 {[%clk 0:01:35]} 34. Qxg8+ {[%clk 0:01:47]}  Qxg8 {[%clk 0:01:37]} 35. Rxg8+ {[%clk 0:01:48]}  Kxg8 {[%clk 0:01:39]} 36. Kg3 {[%clk 0:01:47]}  Kf7 {[%clk 0:01:38]} 37. Kf3 {[%clk 0:01:43]}  Ke6 {[%clk 0:01:06]} 38. Rd2 {[%clk 0:01:45]}  a5 {[%clk 0:00:37]} 39. bxa5 {[%clk 0:01:41]}  Rf8 {[%clk 0:00:38]} 40. Rg2 {[%clk 0:01:33]}  Ra8 {[%clk 0:00:39]} 41. Rg6+ {[%clk 0:01:33]}  Kf7 {[%clk 0:00:36]} 42. f5 {[%clk 0:01:32]}  Rxa5 {[%clk 0:00:37]} 43. e6+ {[%clk 0:01:31]}  Kf8 {[%clk 0:00:21]} 44. f6 {[%clk 0:01:13]}  d4 {[%clk 0:00:22]} 45. Ke4 {[%clk 0:01:08]}  d3 {[%clk 0:00:22]} 46. Rh6 {[%clk 0:00:57]}  Kg8 {[%clk 0:00:20]} 47. f7+ {[%clk 0:00:50]}  Kg7 {[%clk 0:00:19]} 48. Rg6+ {[%clk 0:00:48]}  Kxg6 {[%clk 0:00:16]} 49. f8=Q {[%clk 0:00:50]} 1-0


[Site "Internet"]

[Event "Chessable Masters - Torneo preliminare"]
[White "Smirnov, Pavel"]
[Black "Christiansen, Johan-Sebastian"]
[WhiteFideId "4123425"]
[BlackFideId "1512668"]
[WhiteElo "2470"]
[BlackElo "2481"]
[Result "1-0"]
[Round "8"]
[TimeControl "600+2"]
[Date "2023.03.13"]
[WhiteClock "0:00:33"]
[BlackClock "0:00:27"]

1. d4 {[%clk 0:09:49]}  Nf6 {[%clk 0:10:00]} 2. c4 {[%clk 0:09:44]}  c5 {[%clk 0:10:01]} 3. d5 {[%clk 0:09:44]}  b5 {[%clk 0:10:03]} 4. cxb5 {[%clk 0:09:43]}  a6 {[%clk 0:10:04]} 5. e3 {[%clk 0:09:42]}  e6 {[%clk 0:10:04]} 6. Nc3 {[%clk 0:09:42]}  exd5 {[%clk 0:10:05]} 7. Nxd5 {[%clk 0:09:42]}  Be7 {[%clk 0:10:07]} 8. Nf3 {[%clk 0:09:36]}  O-O {[%clk 0:10:08]} 9. Nxe7+ {[%clk 0:09:15]}  Qxe7 {[%clk 0:10:09]} 10. Be2 {[%clk 0:09:17]}  axb5 {[%clk 0:10:03]} 11. Bxb5 {[%clk 0:09:17]}  d5 {[%clk 0:10:04]} 12. Be2 {[%clk 0:09:11]}  Bf5 {[%clk 0:10:04]} 13. O-O {[%clk 0:09:11]}  Nc6 {[%clk 0:10:01]} 14. b3 {[%clk 0:08:27]}  Nb4 {[%clk 0:09:29]} 15. Bb2 {[%clk 0:08:22]}  Rxa2 {[%clk 0:06:30]} 16. Rxa2 {[%clk 0:08:21]}  Nxa2 {[%clk 0:06:32]} 17. Ne5 {[%clk 0:08:19]}  Nb4 {[%clk 0:06:27]} 18. Qa1 {[%clk 0:08:02]}  Qb7 {[%clk 0:05:21]} 19. Qc1 {[%clk 0:07:41]}  Rc8 {[%clk 0:05:15]} 20. Bf3 {[%clk 0:07:38]}  Be4 {[%clk 0:05:00]} 21. Bxe4 {[%clk 0:07:29]}  Nxe4 {[%clk 0:05:02]} 22. Qd1 {[%clk 0:07:06]}  f6 {[%clk 0:04:56]} 23. Ng4 {[%clk 0:06:48]}  c4 {[%clk 0:04:18]} 24. bxc4 {[%clk 0:06:40]}  dxc4 {[%clk 0:04:20]} 25. f3 {[%clk 0:05:25]}  Nd3 {[%clk 0:04:00]} 26. fxe4 {[%clk 0:03:51]}  Nxb2 {[%clk 0:04:02]} 27. Qd4 {[%clk 0:03:08]}  c3 {[%clk 0:03:45]} 28. e5 {[%clk 0:02:26]}  c2 {[%clk 0:03:10]} 29. Rc1 {[%clk 0:02:26]}  h5 {[%clk 0:02:20]} 30. Nf2 {[%clk 0:02:22]}  fxe5 {[%clk 0:02:21]} 31. Qxe5 {[%clk 0:02:19]}  Qb3 {[%clk 0:02:04]} 32. Qf5 {[%clk 0:00:55]}  Qc3 {[%clk 0:00:15]} 33. h3 {[%clk 0:00:33]}  Qc5 {[%clk 0:00:09]} 34. Qe4 {[%clk 0:00:18]}  Kh8 {[%clk 0:00:11]} 35. Kh1 {[%clk 0:00:16]}  Qc4 {[%clk 0:00:03]} 36. Qg6 {[%clk 0:00:17]}  Qc5 {[%clk 0:00:04]} 37. Qe4 {[%clk 0:00:12]}  Qc6 {[%clk 0:00:05]} 38. Qf5 {[%clk 0:00:12]}  g6 {[%clk 0:00:05]} 39. Qe5+ {[%clk 0:00:13]}  Kg8 {[%clk 0:00:07]} 40. Qxb2 {[%clk 0:00:13]}  Qc5 {[%clk 0:00:03]} 41. Qd4 {[%clk 0:00:13]}  Qf5 {[%clk 0:00:03]} 42. Kg1 {[%clk 0:00:13]}  Re8 {[%clk 0:00:03]} 43. e4 {[%clk 0:00:14]}  Qf4 {[%clk 0:00:03]} 44. Rxc2 {[%clk 0:00:14]}  Rf8 {[%clk 0:00:04]} 45. Rc6 {[%clk 0:00:12]}  Kh7 {[%clk 0:00:03]} 46. Rd6 {[%clk 0:00:13]}  Rf7 {[%clk 0:00:05]} 47. Rd7 {[%clk 0:00:12]}  Qc1+ {[%clk 0:00:06]} 48. Nd1 {[%clk 0:00:12]}  Rxd7 {[%clk 0:00:04]} 49. Qxd7+ {[%clk 0:00:14]}  Kh6 {[%clk 0:00:06]} 50. Qd4 {[%clk 0:00:14]}  Kh7 {[%clk 0:00:07]} 51. e5 {[%clk 0:00:15]}  Qc6 {[%clk 0:00:05]} 52. Ne3 {[%clk 0:00:16]}  Qc1+ {[%clk 0:00:06]} 53. Kh2 {[%clk 0:00:17]}  Qc7 {[%clk 0:00:08]} 54. Qf4 {[%clk 0:00:17]}  Qb8 {[%clk 0:00:08]} 55. Nd5 {[%clk 0:00:17]}  Qc8 {[%clk 0:00:05]} 56. Qf7+ {[%clk 0:00:17]}  Kh6 {[%clk 0:00:06]} 57. Qxg6+ {[%clk 0:00:17]}  Kxg6 {[%clk 0:00:06]} 58. Ne7+ {[%clk 0:00:17]}  Kg5 {[%clk 0:00:07]} 59. Nxc8 {[%clk 0:00:19]}  Kf5 {[%clk 0:00:07]} 60. Kg3 {[%clk 0:00:18]}  Kg5 {[%clk 0:00:09]} 61. e6 {[%clk 0:00:18]}  Kf6 {[%clk 0:00:11]} 62. Kh4 {[%clk 0:00:19]}  Kxe6 {[%clk 0:00:10]} 63. Kxh5 {[%clk 0:00:20]}  Kf7 {[%clk 0:00:11]} 64. Kg5 {[%clk 0:00:21]}  Kg7 {[%clk 0:00:13]} 65. h4 {[%clk 0:00:23]}  Kh7 {[%clk 0:00:14]} 66. h5 {[%clk 0:00:24]}  Kh8 {[%clk 0:00:16]} 67. h6 {[%clk 0:00:25]}  Kh7 {[%clk 0:00:18]} 68. Kh5 {[%clk 0:00:26]}  Kh8 {[%clk 0:00:20]} 69. Kg6 {[%clk 0:00:27]}  Kg8 {[%clk 0:00:19]} 70. Nd6 {[%clk 0:00:28]}  Kh8 {[%clk 0:00:21]} 71. Nf7+ {[%clk 0:00:28]}  Kg8 {[%clk 0:00:22]} 72. h7+ {[%clk 0:00:29]}  Kf8 {[%clk 0:00:24]} 73. h8=Q+ {[%clk 0:00:31]}  Ke7 {[%clk 0:00:26]} 74. Qd8+ {[%clk 0:00:32]}  Ke6 {[%clk 0:00:27]} 75. Qd6# {[%clk 0:00:33]} 1-0


[Site "Internet"]

[Event "Chessable Masters - Torneo preliminare"]
[White "Volkov, Sergey"]
[Black "Kamsky, Gata"]
[WhiteFideId "4122763"]
[BlackFideId "2000024"]
[WhiteElo "2496"]
[BlackElo "2630"]
[Result "1/2-1/2"]
[Round "8"]
[TimeControl "600+2"]
[Date "2023.03.13"]
[WhiteClock "0:01:23"]
[BlackClock "0:01:10"]

1. d4 {[%clk 0:10:01]}  Nf6 {[%clk 0:09:58]} 2. c4 {[%clk 0:10:01]}  c6 {[%clk 0:09:56]} 3. Bf4 {[%clk 0:10:00]}  d5 {[%clk 0:09:56]} 4. e3 {[%clk 0:10:00]}  e6 {[%clk 0:09:01]} 5. Nc3 {[%clk 0:09:59]}  Bd6 {[%clk 0:08:56]} 6. Bg3 {[%clk 0:09:55]}  O-O {[%clk 0:08:56]} 7. Nf3 {[%clk 0:09:55]}  b6 {[%clk 0:08:43]} 8. Rc1 {[%clk 0:09:46]}  Bb7 {[%clk 0:08:39]} 9. a3 {[%clk 0:09:40]}  Bxg3 {[%clk 0:06:32]} 10. hxg3 {[%clk 0:09:38]}  Nbd7 {[%clk 0:06:33]} 11. cxd5 {[%clk 0:09:18]}  cxd5 {[%clk 0:06:30]} 12. Ne5 {[%clk 0:08:17]}  Nxe5 {[%clk 0:04:40]} 13. dxe5 {[%clk 0:08:17]}  Ne4 {[%clk 0:04:41]} 14. Bd3 {[%clk 0:07:53]}  f5 {[%clk 0:03:37]} 15. Ne2 {[%clk 0:07:36]}  Qb8 {[%clk 0:03:06]} 16. f4 {[%clk 0:06:21]}  Qe8 {[%clk 0:02:51]} 17. g4 {[%clk 0:04:27]}  fxg4 {[%clk 0:02:39]} 18. Nd4 {[%clk 0:04:27]}  Rc8 {[%clk 0:02:24]} 19. Rxc8 {[%clk 0:03:35]}  Qxc8 {[%clk 0:02:16]} 20. Bc2 {[%clk 0:03:30]}  Ba6 {[%clk 0:01:41]} 21. Qxg4 {[%clk 0:03:25]}  Bd3 {[%clk 0:01:42]} 22. Nxe6 {[%clk 0:03:01]}  g6 {[%clk 0:01:19]} 23. Rxh7 {[%clk 0:02:49]}  Kxh7 {[%clk 0:01:15]} 24. Nxf8+ {[%clk 0:02:49]}  Qxf8 {[%clk 0:01:17]} 25. Bxd3 {[%clk 0:02:50]}  Qc5 {[%clk 0:01:18]} 26. Ke2 {[%clk 0:02:14]}  Qc1 {[%clk 0:01:05]} 27. Qd7+ {[%clk 0:02:03]}  Kh6 {[%clk 0:01:06]} 28. Qxd5 {[%clk 0:01:43]}  Qxb2+ {[%clk 0:01:06]} 29. Kf3 {[%clk 0:01:40]}  Qf2+ {[%clk 0:01:06]} 30. Kxe4 {[%clk 0:01:25]}  Qxg2+ {[%clk 0:01:07]} 31. Kd4 {[%clk 0:01:26]}  Qb2+ {[%clk 0:01:07]} 32. Ke4 {[%clk 0:01:21]}  Qg2+ {[%clk 0:01:08]} 33. Kd4 {[%clk 0:01:22]}  Qb2+ {[%clk 0:01:09]} 34. Ke4 {[%clk 0:01:23]}  Qg2+ {[%clk 0:01:10]} 1/2-1/2


[Site "Internet"]

[Event "Chessable Masters - Torneo preliminare"]
[White "Paravyan, David"]
[Black "Cardoso Cardoso, Jose Gabriel"]
[WhiteFideId "4194985"]
[BlackFideId "4430492"]
[WhiteElo "2598"]
[BlackElo "2425"]
[Result "1-0"]
[Round "8"]
[TimeControl "600+2"]
[Date "2023.03.13"]
[WhiteClock "0:02:40"]
[BlackClock "0:02:46"]

1. e4 {[%clk 0:10:01]}  c5 {[%clk 0:10:00]} 2. Nf3 {[%clk 0:10:01]}  d6 {[%clk 0:10:01]} 3. d4 {[%clk 0:10:02]}  cxd4 {[%clk 0:10:01]} 4. Nxd4 {[%clk 0:10:04]}  Nf6 {[%clk 0:10:02]} 5. Nc3 {[%clk 0:10:05]}  a6 {[%clk 0:10:03]} 6. h3 {[%clk 0:10:07]}  e6 {[%clk 0:09:55]} 7. g4 {[%clk 0:10:07]}  h6 {[%clk 0:09:57]} 8. Qe2 {[%clk 0:10:07]}  g5 {[%clk 0:09:46]} 9. Bg2 {[%clk 0:09:59]}  Nbd7 {[%clk 0:09:46]} 10. Be3 {[%clk 0:09:51]}  Ne5 {[%clk 0:09:44]} 11. f4 {[%clk 0:09:40]}  gxf4 {[%clk 0:09:43]} 12. Bxf4 {[%clk 0:09:42]}  Nfd7 {[%clk 0:09:40]} 13. O-O-O {[%clk 0:09:26]}  b5 {[%clk 0:09:18]} 14. a3 {[%clk 0:08:41]}  Bb7 {[%clk 0:09:13]} 15. Rhf1 {[%clk 0:08:41]}  Rc8 {[%clk 0:09:06]} 16. Qe1 {[%clk 0:08:33]}  Be7 {[%clk 0:08:34]} 17. Kb1 {[%clk 0:08:33]}  Qc7 {[%clk 0:08:31]} 18. Qf2 {[%clk 0:08:17]}  Rh7 {[%clk 0:08:08]} 19. Bc1 {[%clk 0:07:20]}  Nc4 {[%clk 0:07:53]} 20. Na2 {[%clk 0:06:41]}  Nde5 {[%clk 0:07:36]} 21. b3 {[%clk 0:06:37]}  Nb6 {[%clk 0:07:11]} 22. Bb2 {[%clk 0:06:37]}  Nbd7 {[%clk 0:06:22]} 23. Qe2 {[%clk 0:06:34]}  Qb6 {[%clk 0:06:07]} 24. Rh1 {[%clk 0:05:31]}  Rg7 {[%clk 0:04:52]} 25. Nf3 {[%clk 0:05:25]}  Rg6 {[%clk 0:04:48]} 26. Rhf1 {[%clk 0:05:16]}  a5 {[%clk 0:04:44]} 27. Bd4 {[%clk 0:05:11]}  Qc7 {[%clk 0:04:38]} 28. Nc3 {[%clk 0:05:09]}  b4 {[%clk 0:04:15]} 29. Nb5 {[%clk 0:05:06]}  Qc6 {[%clk 0:04:03]} 30. Na7 {[%clk 0:04:46]}  Ba6 {[%clk 0:04:04]} 31. Qf2 {[%clk 0:04:36]}  Qc7 {[%clk 0:03:13]} 32. Nxe5 {[%clk 0:04:22]}  Rf6 {[%clk 0:03:14]} 33. Nf3 {[%clk 0:04:11]}  Bxf1 {[%clk 0:03:15]} 34. Nxc8 {[%clk 0:03:21]}  Bxg2 {[%clk 0:03:11]} 35. Bxf6 {[%clk 0:03:23]}  Bxf6 {[%clk 0:03:10]} 36. Nxd6+ {[%clk 0:03:20]}  Kf8 {[%clk 0:03:00]} 37. Qxg2 {[%clk 0:03:07]}  Qc3 {[%clk 0:02:56]} 38. e5 {[%clk 0:03:08]}  bxa3 {[%clk 0:02:56]} 39. Nc4 {[%clk 0:03:00]}  Nxe5 {[%clk 0:02:46]} 40. Nfxe5 {[%clk 0:02:47]}  Bxe5 {[%clk 0:02:47]} 41. Ka2 {[%clk 0:02:47]}  a4 {[%clk 0:02:48]} 42. Qd2 {[%clk 0:02:38]}  axb3+ {[%clk 0:02:46]} 43. cxb3 {[%clk 0:02:40]} 1-0


[Site "Internet"]

[Event "Chessable Masters - Torneo preliminare"]
[White "Vaibhav, Suri"]
[Black "Antipov, Mikhail Al."]
[WhiteFideId "5045185"]
[BlackFideId "4107012"]
[WhiteElo "2543"]
[BlackElo "2593"]
[Result "0-1"]
[Round "8"]
[TimeControl "600+2"]
[Date "2023.03.13"]
[WhiteClock "0:00:06"]
[BlackClock "0:00:12"]

1. e4 {[%clk 0:10:01]}  e5 {[%clk 0:10:00]} 2. Nf3 {[%clk 0:10:03]}  Nc6 {[%clk 0:10:01]} 3. Bc4 {[%clk 0:10:03]}  Bc5 {[%clk 0:10:02]} 4. c3 {[%clk 0:10:04]}  Nf6 {[%clk 0:10:03]} 5. d3 {[%clk 0:10:05]}  a6 {[%clk 0:10:04]} 6. Bg5 {[%clk 0:10:04]}  h6 {[%clk 0:09:58]} 7. Bh4 {[%clk 0:10:05]}  Ba7 {[%clk 0:10:00]} 8. Nbd2 {[%clk 0:10:06]}  d6 {[%clk 0:09:59]} 9. O-O {[%clk 0:10:06]}  Qe7 {[%clk 0:09:33]} 10. a4 {[%clk 0:10:07]}  a5 {[%clk 0:09:13]} 11. Re1 {[%clk 0:10:01]}  O-O {[%clk 0:08:52]} 12. Bb5 {[%clk 0:08:59]}  g5 {[%clk 0:07:06]} 13. Bg3 {[%clk 0:09:00]}  Bg4 {[%clk 0:07:05]} 14. h3 {[%clk 0:08:36]}  Bh5 {[%clk 0:07:05]} 15. Nc4 {[%clk 0:08:34]}  Nd8 {[%clk 0:06:38]} 16. Ne3 {[%clk 0:08:09]}  Bxe3 {[%clk 0:06:35]} 17. Rxe3 {[%clk 0:08:11]}  Ne6 {[%clk 0:06:20]} 18. d4 {[%clk 0:08:11]}  Nf4 {[%clk 0:06:20]} 19. Qc2 {[%clk 0:07:55]}  Bg6 {[%clk 0:05:58]} 20. Rd1 {[%clk 0:07:15]}  c6 {[%clk 0:05:32]} 21. Bf1 {[%clk 0:07:13]}  Rad8 {[%clk 0:04:54]} 22. Ree1 {[%clk 0:07:04]}  N6h5 {[%clk 0:04:24]} 23. Bh2 {[%clk 0:07:01]}  f6 {[%clk 0:04:23]} 24. Nd2 {[%clk 0:06:24]}  d5 {[%clk 0:03:59]} 25. Qb3 {[%clk 0:06:25]}  Kh7 {[%clk 0:03:11]} 26. exd5 {[%clk 0:06:13]}  cxd5 {[%clk 0:03:11]} 27. dxe5 {[%clk 0:04:28]}  fxe5 {[%clk 0:03:12]} 28. Qb6 {[%clk 0:04:26]}  Rd6 {[%clk 0:02:44]} 29. Qxa5 {[%clk 0:04:27]}  Rdf6 {[%clk 0:02:44]} 30. Qb4 {[%clk 0:04:03]}  Qc7 {[%clk 0:02:09]} 31. Nb3 {[%clk 0:02:56]}  R8f7 {[%clk 0:01:40]} 32. a5 {[%clk 0:02:44]}  Ng7 {[%clk 0:01:21]} 33. Qc5 {[%clk 0:02:13]}  Rc6 {[%clk 0:01:22]} 34. Qb4 {[%clk 0:01:51]}  Nge6 {[%clk 0:01:10]} 35. g3 {[%clk 0:01:44]}  Bh5 {[%clk 0:00:47]} 36. Rd2 {[%clk 0:01:36]}  Bf3 {[%clk 0:00:45]} 37. Qb5 {[%clk 0:01:25]}  Qc8 {[%clk 0:00:28]} 38. Rxe5 {[%clk 0:01:21]}  Nc7 {[%clk 0:00:27]} 39. Nd4 {[%clk 0:00:26]}  Nxb5 {[%clk 0:00:22]} 40. Nxf3 {[%clk 0:00:27]}  Nxh3+ {[%clk 0:00:23]} 41. Kg2 {[%clk 0:00:28]}  Rcf6 {[%clk 0:00:19]} 42. Bd3+ {[%clk 0:00:18]}  Kg7 {[%clk 0:00:19]} 43. Bxb5 {[%clk 0:00:13]}  Rxf3 {[%clk 0:00:20]} 44. Ree2 {[%clk 0:00:15]}  Qg4 {[%clk 0:00:16]} 45. Kf1 {[%clk 0:00:05]}  Nxf2 {[%clk 0:00:12]} 46. Rxf2 {[%clk 0:00:06]}  Qh3+ {[%clk 0:00:12]} 0-1


[Site "Internet"]